bitfinex/quotes_SOLUSD_20240712
["timestamp","ask_amount","ask_price","bid_price","bid_amount"]
[1720755637056,0.17,136.95,136.88,22.0533]
[1720755637259,45.34,136.96,136.88,22.0533]
[1720755637661,7.303,136.93,136.88,29.3586]
[1720755637858,7.3043,136.91,136.88,22.0533]
[1720755638070,7.3033,136.93,136.88,29.3589]
[1720755638360,7.3031,136.93,136.88,29.3589]
[1720755638985,7.3025,136.94,136.89,7.3051]
[1720755639192,7.303,136.93,136.88,47.6222]
[1720755639398,7.3042,136.91,136.88,22.0533]
[1720755639691,7.3047,136.9,136.88,22.0533]
[1720755639892,0.17,136.92,136.88,22.0533]
[1720755640187,0.34,136.93,136.88,22.0533]
[1720755640401,7.4726,136.94,136.89,7.305]
[1720755640567,7.3033,136.93,136.88,22.0533]
[1720755640766,7.3033,136.93,136.88,29.3588]
[1720755640979,7.3036,136.92,136.88,22.0533]
[1720755641186,0.17,136.95,136.88,40.3171]
[1720755641388,7.3025,136.94,136.89,7.3047]
[1720755642176,7.303,136.93,136.88,47.6226]
[1720755642568,7.3037,136.92,136.88,22.0533]
[1720755642969,7.304,136.91,136.88,22.0533]
[1720755644000,7.3053,136.89,136.84,14.51795126]
[1720755644789,7.6447,136.9,136.85,7.307]
[1720755645192,0.34,136.9,136.84,0.90045126]
[1720755645380,7.3067,136.86,136.84,0.90045126]
[1720755645576,7.3072,136.85,136.84,0.90045126]
[1720755645887,18.2647,136.88,136.84,0.90045126]
[1720755645888,7.3067,136.86,136.84,0.90045126]
[1720755646291,7.3072,136.85,136.84,0.90045126]
[1720755646502,7.4772,136.85,136.84,0.90045126]
[1720755646675,7.3068,136.86,136.84,0.90045126]
[1720755647066,7.4764,136.87,136.84,0.90045126]
[1720755647399,7.3057,136.88,136.84,0.90045126]
[1720755647573,7.4752,136.89,136.84,8.20815126]
[1720755647770,0.34,136.88,136.84,8.20815126]
[1720755648096,45.34,136.88,136.84,0.90045126]
[1720755648385,7.3065,136.87,136.84,0.90045126]
[1720755648607,14.90205156,136.91,136.86,7.3066]
[1720755648889,7.3039,136.92,136.87,7.3058]
[1720755649263,7.59701179,136.93,136.85,21.4191]
[1720755649467,2.96082127,136.95,136.88,18.2639]
[1720755649667,7.303,136.93,136.88,25.5691]
[1720755650267,2.96082127,136.95,136.9,18.2601]
[1720755650463,7.3012,136.97,136.92,7.303]
[1720755650685,7.3014,136.96,136.92,7.303]
[1720755650885,7.60229675,136.98,136.93,7.3026]
[1720755651087,7.3014,136.96,136.87,6.0759]
[1720755651290,7.3014,136.96,136.92,18.2584]
[1720755651491,7.60229675,136.98,136.92,25.5619]
[1720755651898,14.90259675,136.98,136.93,7.3028]
[1720755652104,7.60229675,136.98,136.95,7.3018]
[1720755652303,7.60229675,136.98,136.94,6.5131]
[1720755652496,7.60229675,136.98,136.94,32.0713]
[1720755653189,7.2993,137.0,136.95,7.3018]
[1720755653383,7.60031002,137.02,136.96,7.3011]
[1720755653607,7.60031002,137.02,136.94,24.7689]
[1720755653813,7.60031002,137.02,136.97,18.2519]
[1720755654113,7.2967,137.05,137.0,7.2992]
[1720755654315,36.75627018,137.07,136.94,6.5131]
[1720755654316,7.59860347,137.04,136.94,6.5131]
[1720755654493,7.59860347,137.04,136.95,45.0]
[1720755654905,7.2987,137.02,136.97,7.3004]
[1720755656208,7.2988,137.01,136.96,25.554]
[1720755658397,7.2983,137.02,136.97,7.3007]
[1720755658805,7.2987,137.01,136.96,25.5538]
[1720755661325,7.2994,137.0,136.95,52.3017]
[1720755661897,7.2989,137.01,136.96,7.3012]
[1720755662300,7.59860347,137.04,136.95,45.0]
[1720755662610,14.89610347,137.04,136.95,45.0]
[1720755662809,14.89610347,137.04,136.99,7.2996]
[1720755662990,7.59860347,137.04,136.97,18.2516]
[1720755663191,7.59860347,137.04,136.95,45.0]
[1720755663822,14.89610347,137.04,136.99,7.2996]
[1720755664122,14.89570347,137.04,136.99,7.2996]
[1720755666115,14.89570347,137.04,137.0,22.5732]
[1720755666116,7.59860347,137.04,137.0,22.5732]
[1720755666306,7.2956,137.07,137.02,7.2981]
[1720755667108,7.296,137.06,137.01,7.2985]
[1720755667425,7.2956,137.07,137.02,7.2981]
[1720755668395,7.59481106,137.09,137.0,22.5732]
[1720755668601,7.2939,137.1,137.01,45.34]
[1720755668819,7.2939,137.1,137.05,7.2962]
[1720755669323,7.2936,137.11,137.05,7.2962]
[1720755669625,7.2942,137.1,137.05,7.2962]
[1720755670321,7.2935,137.11,137.06,7.296]
[1720755670829,7.2939,137.1,137.05,7.2963]
[1720755671728,18.2326,137.12,137.01,45.34]
[1720755671916,0.17,137.11,137.01,45.17]
[1720755672235,63.5748,137.11,137.02,1.45923437]
[1720755672463,7.2945,137.09,137.04,7.2968]
[1720755672723,7.2943,137.1,137.05,7.2962]
[1720755673297,0.17,137.11,137.0,22.5732]
[1720755673498,0.17,137.11,137.01,45.0]
[1720755673827,45.17,137.11,137.01,45.0]
[1720755674024,7.2947,137.09,137.04,7.2969]
[1720755674433,7.295,137.08,137.03,7.2974]
[1720755674598,0.17,137.11,137.01,45.0]
[1720755674801,7.2944,137.09,137.01,45.0]
[1720755674999,7.2944,137.09,137.04,7.2967]
[1720755676218,7.2941,137.1,137.05,7.2964]
[1720755677338,45.10197457,137.13,137.05,7.2964]
[1720755677542,7.2951,137.08,137.03,7.2972]
[1720755677847,7.2947,137.09,137.04,7.297]
[1720755678025,7.2951,137.08,137.03,7.2974]
[1720755678820,7.2946,137.09,137.04,7.297]
[1720755679037,18.2353,137.1,137.01,45.0]
[1720755679241,0.34,137.09,137.0,22.5732]
[1720755679429,14.87957874,137.08,137.03,7.2972]
[1720755679633,7.2946,137.09,137.04,7.2971]
[1720755680239,7.295,137.08,137.03,7.2974]
[1720755680854,7.591726,137.11,137.0,22.5732]
[1720755680855,7.2946,137.09,137.04,7.297]
[1720755681031,7.591726,137.11,137.0,73.1532]
[1720755681226,14.885526,137.11,137.06,7.2959]
[1720755681420,7.2938,137.11,137.06,7.2959]
[1720755681625,7.2929,137.12,137.07,7.2952]
[1720755681820,7.58847705,137.14,137.07,7.2952]
[1720755682027,7.2934,137.11,137.07,7.2952]
[1720755682462,7.2931,137.12,137.07,7.2952]
[1720755682834,7.58847705,137.14,137.06,6.1386]
[1720755683056,14.88027705,137.14,137.09,7.2942]
[1720755683244,7.2918,137.14,137.09,7.2942]
[1720755684234,2.96082127,137.15,137.07,45.0]
[1720755684856,7.58733144,137.17,137.13,7.292]
[1720755685158,7.2898,137.18,137.13,7.292]
[1720755685758,10.5493139,137.2,137.12,7.84051006]
[1720755685924,7.58849263,137.2,137.12,7.84051006]
[1720755686125,7.2918,137.14,137.12,6.3858]
[1720755686324,7.2921,137.14,137.09,7.2942]
[1720755686824,7.2914,137.15,137.1,7.2939]
[1720755687039,7.2914,137.15,137.08,23.04]
[1720755687040,7.2908,137.16,137.11,7.2932]
[1720755687475,7.2913,137.15,137.1,7.2938]
[1720755688344,0.17,137.18,137.08,23.04]
[1720755688523,0.17,137.18,137.08,30.3349]
[1720755688524,7.2927,137.13,137.08,30.3349]
[1720755688725,7.2928,137.12,137.08,23.04]
[1720755689637,7.2924,137.13,137.08,30.3348]
[1720755689831,28.69,137.16,137.09,7.2944]
[1720755690033,7.2916,137.15,137.1,7.2934]
[1720755690356,73.86,137.19,137.11,7.293]
[1720755690357,7.2908,137.16,137.11,7.293]
[1720755690553,7.2912,137.15,137.1,7.2937]
[1720755690756,7.2909,137.16,137.11,7.2933]
[1720755691558,7.58849263,137.2,137.08,23.04]
[1720755691559,7.29,137.18,137.08,44.93]
[1720755691762,7.29,137.18,137.13,7.2923]
[1720755692845,7.29,137.18,137.14,6.248]
[1720755693042,7.2902,137.17,137.14,6.248]
[1720755695560,7.58849263,137.2,137.1,6.2665]
[1720755695732,7.2908,137.16,137.11,7.293]
[1720755695933,18.2232,137.19,137.1,6.2665]
[1720755696134,18.2232,137.19,137.11,45.0]
[1720755696363,7.2916,137.15,137.1,13.56]
[1720755696956,7.2918,137.14,137.1,13.56]
[1720755697151,7.2923,137.13,137.1,6.2665]
[1720755697354,7.2919,137.14,137.1,6.2665]
[1720755697555,7.2914,137.15,137.11,0.55993489]
[1720755697762,7.2918,137.14,137.1,6.2665]
[1720755698445,7.2915,137.15,137.1,13.5603]
[1720755699166,7.2915,137.15,137.11,7.2933]
[1720755700062,7.5864335,137.18,137.1,6.2665]
[1720755700260,21.05622746,137.17,137.11,45.0]
[1720755700564,7.2895,137.19,137.14,22.6624]
[1720755700743,7.2888,137.2,137.15,7.2912]
[1720755701142,7.58433448,137.22,137.14,22.6622]
[1720755701143,7.2892,137.19,137.14,22.6622]
[1720755702060,7.2886,137.21,137.16,13.6734]
[1720755702262,5.50016171,137.24,137.16,6.3831]
[1720755702571,7.2881,137.21,137.16,13.6735]
[1720755704648,7.2881,137.21,137.17,1.45779764]
[1720755704956,7.2896,137.18,137.14,21.5264]
[1720755705247,7.2893,137.19,137.14,28.8181]
[1720755706556,7.2893,137.19,137.14,21.5264]
[1720755707342,7.2893,137.19,137.14,28.818]
[1720755708542,7.2897,137.18,137.14,21.5264]
[1720755709475,7.2893,137.19,137.14,28.8182]
[1720755711063,7.2887,137.2,137.15,7.2911]
[1720755711950,2.96082127,137.21,137.17,7.29]
[1720755712149,2.96082127,137.21,137.16,7.2905]
[1720755712150,10.24892127,137.21,137.16,7.2905]
[1720755713152,7.2881,137.21,137.16,7.2905]
[1720755713555,7.2877,137.22,137.17,7.2901]
[1720755713784,14.87323866,137.23,137.18,7.2896]
[1720755714384,7.2873,137.23,137.18,7.2896]
[1720755715193,7.2876,137.22,137.17,7.2899]
[1720755715582,7.2876,137.22,137.18,7.2896]
[1720755716091,7.2876,137.22,137.17,7.29]
[1720755716268,7.2881,137.21,137.17,7.29]
[1720755716881,7.2877,137.22,137.17,7.29]
[1720755717088,7.2881,137.21,137.14,21.5264]
[1720755717384,7.2876,137.22,137.17,7.2898]
[1720755717599,7.2874,137.23,137.18,7.2895]
[1720755718293,7.2874,137.23,137.15,0.34]
[1720755718294,7.2866,137.24,137.19,7.2891]
[1720755718482,7.2871,137.23,137.18,7.2895]
[1720755719789,7.2876,137.22,137.18,7.2895]
[1720755719990,7.2876,137.22,137.17,7.2899]
[1720755720183,7.2876,137.22,137.18,45.0]
[1720755720500,7.2867,137.24,137.19,7.2891]
[1720755720690,7.287,137.23,137.18,52.2894]
[1720755721009,7.2875,137.22,137.17,7.2899]
[1720755721183,7.2885,137.21,137.17,7.2901]
[1720755721687,7.2885,137.21,137.16,7.2905]
[1720755721886,7.2877,137.22,137.17,7.2901]
[1720755722697,18.2178,137.23,137.14,21.5264]
[1720755722904,16.5526,137.21,137.14,6.1557]
[1720755723110,18.2229,137.19,137.14,6.1557]
[1720755723314,7.2903,137.17,137.12,7.2925]
[1720755723972,7.2896,137.19,137.13,7.2922]
[1720755724182,7.6288,137.2,137.11,16.5823]
[1720755724379,7.2888,137.2,137.11,16.5823]
[1720755724580,7.2888,137.2,137.15,7.2911]
[1720755725079,14.86780657,137.21,137.16,7.2906]
[1720755725283,7.2886,137.2,137.15,7.291]
[1720755725811,7.2886,137.2,137.16,8.66994494]
[1720755725969,7.2886,137.2,137.16,7.2907]
[1720755726172,14.86760657,137.21,137.16,7.2907]
[1720755726490,14.86760657,137.21,137.11,38.4723]
[1720755726491,10.24872127,137.22,137.17,8.69039215]
[1720755726802,10.24872127,137.22,137.17,7.2901]
[1720755726997,10.24872127,137.22,137.17,8.68988231]
[1720755727206,10.24872127,137.22,137.18,1.39968056]
[1720755727509,2.96082127,137.22,137.18,8.68918056]
[1720755728003,7.59407647,137.24,137.18,1.39968056]
[1720755728180,14.88087647,137.24,137.19,7.2889]
[1720755728581,7.59407647,137.24,137.17,16.1069]
[1720755728987,7.2887,137.2,137.17,16.1069]
[1720755729200,18.2177,137.23,137.17,16.1069]
[1720755729509,7.2889,137.2,137.17,16.1069]
[1720755729707,7.2883,137.21,137.17,16.1069]
[1720755730009,7.2876,137.22,137.18,7.2896]
[1720755730210,7.2876,137.22,137.17,23.3969]
[1720755730417,7.2872,137.23,137.18,7.2896]
[1720755730701,10.55489774,137.24,137.17,16.1069]
[1720755731010,7.2881,137.21,137.17,16.1069]
[1720755732488,7.2886,137.2,137.17,16.1069]
[1720755732706,7.2882,137.21,137.17,16.1069]
[1720755733081,7.2876,137.22,137.17,23.3967]
[1720755733386,7.2872,137.23,137.18,7.2895]
[1720755734312,7.2876,137.22,137.18,7.2895]
[1720755734600,7.2872,137.23,137.18,7.2895]
[1720755734806,17.84149774,137.24,137.19,7.2889]
[1720755735016,17.84149774,137.24,137.2,7.2886]
[1720755735185,17.84149774,137.24,137.19,7.289]
[1720755736088,7.2879,137.22,137.17,23.3967]
[1720755737121,10.55489774,137.24,137.18,7.2896]
[1720755737122,7.2872,137.23,137.18,7.2896]
[1720755737935,10.55489774,137.24,137.17,16.1069]
[1720755738128,2.96082127,137.24,137.18,45.0]
[1720755738424,2.96082127,137.24,137.2,7.2885]
[1720755739324,14.88059453,137.26,137.21,7.2879]
[1720755739529,7.2856,137.26,137.22,7.2875]
[1720755739821,7.2854,137.26,137.21,7.2878]
[1720755740004,7.2861,137.25,137.2,7.2883]
[1720755740508,7.2855,137.26,137.21,7.288]
[1720755740811,7.2855,137.26,137.21,7.2879]
[1720755741130,7.2861,137.25,137.2,7.2883]
[1720755741505,7.2853,137.27,137.21,7.2879]
[1720755742540,7.2853,137.27,137.22,7.2873]
[1720755743018,7.2854,137.26,137.22,7.2873]
[1720755743218,5.93311119,137.28,137.22,7.2873]
[1720755743602,7.59411468,137.29,137.21,6.1525]
[1720755743806,7.2841,137.29,137.24,7.2864]
[1720755744212,48.9255153,137.31,137.23,7.2869]
[1720755744424,7.2845,137.28,137.23,7.2869]
[1720755744825,14.74964805,137.31,137.21,6.1525]
[1720755745028,7.2834,137.3,137.22,45.34]
[1720755745344,7.2834,137.3,137.25,7.2858]
[1720755745910,7.59402118,137.31,137.22,45.0]
[1720755746116,7.284,137.29,137.24,7.2863]
[1720755746330,7.284,137.29,137.25,7.2859]
[1720755746710,7.284,137.29,137.24,7.2862]
[1720755747323,7.2844,137.28,137.24,7.2862]
[1720755748326,7.284,137.29,137.24,7.2862]
[1720755749415,7.2837,137.3,137.21,6.1525]
[1720755749633,7.2837,137.3,137.22,45.34]
[1720755749823,7.2839,137.29,137.25,7.2857]
[1720755750133,7.2836,137.3,137.22,45.0]
[1720755750333,7.2836,137.3,137.25,7.2855]
[1720755750720,7.2836,137.3,137.22,45.0]
[1720755750721,14.87702118,137.31,137.22,45.0]
[1720755750922,14.87702118,137.31,137.26,7.2852]
[1720755751120,14.87702118,137.31,137.22,45.0]
[1720755751121,7.59402118,137.31,137.22,45.0]
[1720755751321,7.59402118,137.31,137.26,7.2849]
[1720755751527,14.87702118,137.31,137.26,7.2849]
[1720755751939,7.59402118,137.31,137.27,7.2844]
[1720755752443,14.12387928,137.32,137.27,7.2844]
[1720755753141,0.8571494,137.32,137.26,6.0167]
[1720755753449,0.8571494,137.32,137.29,7.2836]
[1720755754735,0.8571494,137.32,137.28,7.2843]
[1720755755133,0.8571494,137.32,137.29,7.2837]
[1720755756136,0.8571494,137.32,137.26,6.0167]
[1720755756323,0.8571494,137.32,137.28,7.2841]
[1720755757249,0.8571494,137.32,137.26,6.0167]
[1720755757250,0.8571494,137.32,137.29,7.2837]
[1720755757456,0.8571494,137.32,137.26,6.0167]
[1720755757749,0.8571494,137.32,137.25,15.0706]
[1720755758049,7.284,137.29,137.24,7.2864]
[1720755758425,7.2844,137.28,137.24,7.2864]
[1720755759262,7.2839,137.29,137.24,7.2864]
[1720755759434,7.2834,137.3,137.25,7.2858]
[1720755762043,7.2839,137.29,137.24,7.2864]
[1720755763356,7.2839,137.29,137.25,7.2859]
[1720755763735,7.2839,137.29,137.24,7.2862]
[1720755764055,7.2844,137.28,137.23,7.2868]
[1720755764553,7.2844,137.28,137.24,7.2863]
[1720755765149,7.2839,137.29,137.24,7.2863]
[1720755765346,7.59119674,137.31,137.22,6.3102]
[1720755765655,18.5486,137.3,137.22,6.3102]
[1720755765829,18.5486,137.3,137.22,13.5976]
[1720755766034,7.2852,137.27,137.22,13.5976]
[1720755766251,0.34,137.3,137.22,6.3102]
[1720755766465,7.2844,137.28,137.23,7.2868]
[1720755767066,7.285,137.27,137.22,13.5975]
[1720755768361,7.2864,137.25,137.2,7.2884]
[1720755769064,7.2865,137.24,137.19,7.289]
[1720755769449,7.2871,137.23,137.18,7.2895]
[1720755769637,5.7468,137.27,137.17,21.9011]
[1720755769853,7.2856,137.26,137.21,7.2877]
[1720755770101,5.7468,137.27,137.21,7.2877]
[1720755770369,7.2855,137.26,137.21,7.2877]
[1720755770670,7.2849,137.27,137.22,7.2874]
[1720755770845,7.4545,137.28,137.23,7.2869]
[1720755771044,7.2845,137.28,137.23,7.2869]
[1720755771452,7.285,137.27,137.22,7.2873]
[1720755775051,7.58969024,137.29,137.25,7.2859]
[1720755775276,14.87359024,137.29,137.22,16.4292]
[1720755775566,7.2844,137.28,137.24,7.2862]
[1720755775868,7.2844,137.28,137.24,1.45682829]
[1720755776063,7.285,137.27,137.22,23.7165]
[1720755776243,7.2854,137.26,137.22,16.4292]
[1720755776646,7.2854,137.26,137.22,23.7167]
[1720755776867,7.2854,137.26,137.19,23.0417]
[1720755777072,7.2854,137.26,137.21,7.2876]
[1720755777368,7.285,137.27,137.2,45.0]
[1720755777596,7.285,137.27,137.22,7.2871]
[1720755777762,7.285,137.27,137.23,7.2869]
[1720755777967,7.285,137.27,137.22,7.2873]
[1720755778763,7.285,137.27,137.23,7.287]
[1720755779561,7.285,137.27,137.22,7.2873]
[1720755780774,7.2856,137.26,137.21,7.2878]
[1720755781371,7.286,137.25,137.2,7.2883]
[1720755781672,7.2856,137.26,137.22,7.2874]
[1720755781874,38.86130584,137.28,137.23,7.2866]
[1720755782469,2.88660584,137.28,137.19,23.0417]
[1720755782677,7.2844,137.28,137.24,7.2862]
[1720755782861,7.2844,137.28,137.2,45.34]
[1720755783069,7.58896206,137.31,137.2,45.34]
[1720755783261,7.2839,137.29,137.25,7.2858]
[1720755783980,7.2835,137.3,137.25,7.2858]
[1720755784179,7.2835,137.3,137.2,45.34]
[1720755784180,7.2838,137.29,137.24,7.2863]
[1720755784476,7.2844,137.28,137.2,45.34]
[1720755784979,7.284,137.29,137.24,7.2863]
[1720755786977,10.50941198,137.31,137.25,7.2859]
[1720755787271,21.03220019,137.3,137.25,45.0]
[1720755787587,8.1398494,137.32,137.27,7.2848]
[1720755787881,21.02883982,137.31,137.27,7.2848]
[1720755788082,8.1398494,137.32,137.28,1.45671839]
[1720755788272,8.1398494,137.32,137.28,8.74101839]
[1720755788455,0.8571494,137.32,137.29,7.2838]
[1720755788646,0.8571494,137.32,137.3,1.45650526]
[1720755789481,0.8571494,137.32,137.28,7.2842]
[1720755789684,0.8571494,137.32,137.29,1.45626821]
[1720755789891,0.8571494,137.32,137.3,1.45616244]
[1720755790183,0.8571494,137.32,137.3,8.73946244]
[1720755790389,0.8571494,137.32,137.3,7.2833]
[1720755790588,0.8571494,137.32,137.31,8.73843824]
[1720755791096,0.8571494,137.32,137.31,53.73843824]
[1720755791279,0.8571494,137.32,137.31,69.70013824]
[1720755794398,0.8571494,137.32,137.31,62.41743824]
[1720755795892,0.8571494,137.32,137.3,6.4053]
[1720755796097,0.8571494,137.32,137.29,7.2836]
[1720755796473,0.8571494,137.32,137.28,16.5055]
[1720755796674,0.8571494,137.32,137.29,7.2838]
[1720755797093,0.8571494,137.32,137.3,7.2831]
[1720755797686,0.8571494,137.32,137.31,7.2827]
[1720755797874,0.8571494,137.32,137.31,52.2827]
[1720755799597,0.8571494,137.32,137.31,58.5088]
[1720755799797,0.8571494,137.32,137.31,87.5388]
[1720755799982,0.8571494,137.32,137.31,104.1652]
[1720755804212,17.87917069,137.43,137.31,138.8025]
[1720755804496,17.87917069,137.43,137.38,7.2786]
[1720755805001,10.28854707,137.43,137.38,7.2786]
[1720755805204,7.2771,137.42,137.37,7.2793]
[1720755806110,7.2775,137.41,137.37,7.2793]
[1720755806783,7.2771,137.42,137.37,7.2793]
[1720755807097,7.2771,137.42,137.38,7.279]
[1720755808902,7.2776,137.41,137.33,21.92]
[1720755809111,7.2776,137.41,137.34,45.34]
[1720755809287,7.2776,137.41,137.34,45.17]
[1720755809606,7.2771,137.42,137.37,7.2795]
[1720755810104,18.1911,137.43,137.34,0.17]
[1720755810410,7.2782,137.4,137.35,7.2805]
[1720755811104,7.2786,137.39,137.34,7.281]
[1720755811306,7.2793,137.38,137.33,7.2814]
[1720755811491,28.69,137.42,137.33,7.2814]
[1720755811492,7.2796,137.37,137.33,7.2814]
[1720755811806,28.69,137.38,137.28,15.6839]
[1720755812012,7.2812,137.34,137.29,7.2837]
[1720755812189,7.2812,137.34,137.29,7.2836]
[1720755812377,7.2808,137.35,137.3,7.283]
[1720755812782,7.2813,137.34,137.29,7.2837]
[1720755813003,46.8907,137.36,137.27,6.5607]
[1720755813211,7.2812,137.34,137.29,7.2837]
[1720755813382,46.8907,137.36,137.3,7.2832]
[1720755813383,28.69,137.36,137.3,7.2832]
[1720755813583,28.69,137.36,137.27,6.5607]
[1720755813899,35.9703,137.36,137.31,7.2827]
[1720755814411,7.2807,137.35,137.31,7.2827]
[1720755814613,35.9702,137.36,137.31,7.2827]
[1720755815131,7.2796,137.37,137.32,7.282]
[1720755815804,7.2801,137.36,137.31,7.2826]
[1720755816907,7.2807,137.35,137.31,7.2826]
[1720755817408,7.2807,137.35,137.3,7.2831]
[1720755817620,7.2803,137.36,137.31,7.2826]
[1720755817787,7.2797,137.37,137.32,7.2821]
[1720755817982,7.2801,137.36,137.31,7.2825]
[1720755818889,7.281,137.35,137.3,7.2831]
[1720755819621,7.281,137.35,137.31,7.2827]
[1720755821014,7.2802,137.36,137.31,7.2827]
[1720755821196,7.2802,137.36,137.31,7.2826]
[1720755821603,7.2807,137.35,137.3,7.2831]
[1720755821803,7.2803,137.36,137.31,7.2827]
[1720755822024,7.2806,137.35,137.31,7.2827]
[1720755822395,7.2806,137.35,137.3,7.2831]
[1720755822597,46.8877,137.38,137.29,7.2836]
[1720755822807,46.8877,137.38,137.3,7.2831]
[1720755823007,7.2807,137.35,137.3,7.2831]
[1720755823929,16.4586,137.34,137.27,6.5607]
[1720755824090,16.4586,137.34,137.25,16.3372]
[1720755824411,7.2831,137.31,137.26,7.2853]
[1720755825300,7.2831,137.31,137.27,7.2848]
[1720755825500,7.2833,137.3,137.25,7.2856]
[1720755825918,7.2829,137.31,137.26,7.2853]
[1720755826419,7.2838,137.3,137.24,6.4764]
[1720755826629,43.56110901,137.32,137.27,7.2843]
[1720755827123,36.27880901,137.32,137.24,6.4764]
[1720755827301,7.2817,137.33,137.28,7.284]
[1720755827502,31.15738474,137.34,137.25,45.34]
[1720755827711,23.87588474,137.34,137.3,7.2832]
[1720755827916,16.2886,137.34,137.25,45.34]
[1720755828400,7.2824,137.32,137.27,7.2847]
[1720755828904,7.2818,137.33,137.28,7.2843]
[1720755829213,23.5699,137.34,137.29,7.2836]
[1720755830721,7.2817,137.33,137.28,7.2841]
[1720755831425,7.2817,137.33,137.29,7.2837]
[1720755831724,23.57,137.34,137.29,7.2837]
[1720755832021,7.2823,137.32,137.27,7.2847]
[1720755832221,7.2823,137.32,137.28,7.2843]
[1720755832814,7.2823,137.32,137.25,45.0]
[1720755833313,7.2823,137.32,137.27,7.2848]
[1720755833524,7.2843,137.28,137.24,6.4764]
[1720755833722,28.69,137.33,137.24,6.4764]
[1720755833906,28.69,137.33,137.28,7.2843]
[1720755833907,7.2824,137.32,137.28,7.2843]
[1720755834229,7.2824,137.32,137.27,7.2846]
[1720755834532,7.2824,137.32,137.28,7.2842]
[1720755834823,7.2828,137.31,137.27,7.2846]
[1720755835029,7.2828,137.31,137.26,7.2852]
[1720755836017,7.2828,137.31,137.27,7.2848]
[1720755836725,7.2824,137.32,137.27,7.2845]
[1720755837333,7.2828,137.31,137.26,7.2852]
[1720755837717,7.2828,137.31,137.27,7.2848]
[1720755838402,7.2824,137.32,137.27,7.2848]
[1720755839228,7.2832,137.31,137.24,6.4764]
[1720755839432,7.2833,137.3,137.26,7.2852]
[1720755839818,7.2838,137.29,137.21,22.3406]
[1720755840127,7.2838,137.29,137.24,7.2862]
[1720755840514,7.2838,137.29,137.25,7.2859]
[1720755840828,7.2834,137.3,137.26,7.2854]
[1720755841132,28.86,137.31,137.21,22.3406]
[1720755841333,36.1429,137.31,137.22,45.0]
[1720755841509,28.69,137.31,137.26,7.2852]
[1720755841829,7.284,137.29,137.22,45.0]
[1720755842653,7.2847,137.28,137.21,22.3406]
[1720755842944,7.2859,137.26,137.21,7.2879]
[1720755843310,15.0135,137.3,137.26,7.2851]
[1720755843725,15.0135,137.3,137.26,7.2852]
[1720755844034,22.2968,137.3,137.26,7.2852]
[1720755844829,22.2968,137.3,137.25,7.2857]
[1720755845525,22.2968,137.3,137.26,7.2852]
[1720755845719,15.0135,137.3,137.27,7.2848]
[1720755845920,15.0135,137.3,137.26,7.2852]
[1720755846324,15.0135,137.3,137.2,0.17]
[1720755846325,22.2968,137.3,137.25,7.2857]
[1720755847038,7.284,137.29,137.25,7.2857]
[1720755847245,7.284,137.29,137.24,7.2863]
[1720755847838,22.2969,137.3,137.25,7.2859]
[1720755848722,7.2838,137.29,137.25,7.2859]
[1720755849842,7.2838,137.29,137.24,7.2863]
[1720755850049,7.2838,137.29,137.25,7.2857]
[1720755850723,14.3,137.27,137.22,14.3]
[1720755850924,14.3,137.27,137.24,7.2864]
[1720755852243,14.3,137.27,137.25,7.2859]
[1720755853938,14.3,137.27,137.23,45.0]
[1720755855138,14.3,137.26,137.23,7.2868]
[1720755856251,14.3,137.26,137.24,7.2864]